{"text_format":"3","workbook":"xlsx","n_sheets":5,"sheets":["Отчет о продажах товаров","Журнал данных","Прайс-лист","Свод. таблица стандартных цен","Свод. таблица тенденций продаж"],"not_rendered":{"charts":2,"defined_names":6,"pivot_tables":2},"read":"whole","date_system":"1900"}

{"sheet":"Отчет о продажах товаров","index":0,"n_rows":20,"n_cols":2,"rows_kept":20}
[null,"Отчет о продажах товаров"]
{"$rows_empty":18}
[null," Товары"]

{"sheet":"Журнал данных","index":1,"n_rows":33,"n_cols":10,"rows_kept":33}
[null,"Журнал данных прайс-листа и продаж по товарам"]
[]
[null,"Код товара","Наименование товара","Цена на дату","Розн. цена за ед.","Опт. цена за ед.*","Продано в розницу","Продано оптом","Всего продаж (шт.)","Всего продаж ($)"]
[null,5,{"$f":"IFERROR(IF(таблПродажи[[#This Row],[Код товара]]<>\"\",VLOOKUP(таблПродажи[Код товара],таблПродукты[[Код товара]:[Наименование]],2,FALSE),\"\"),\"Неизвестный код продукта\")","v":"Шорты"},"2012-01-01",20,{"v":20,"d":"20р."},629,{"v":1254,"d":"1,254"},{"$f":"таблПродажи[[#This Row],[Продано в розницу]]+таблПродажи[[#This Row],[Продано оптом]]","v":{"v":1883,"d":"1,883"}},{"$f":"таблПродажи[[#This Row],[Продано в розницу]]*таблПродажи[[#This Row],[Розн. цена за ед.]]+таблПродажи[[#This Row],[Продано оптом]]*таблПродажи[[#This Row],[Опт. цена за ед.*]]","v":{"v":37660,"d":"37,660р."}}]
[null,1,{"$f":"IFERROR(IF(таблПродажи[[#This Row],[Код товара]]<>\"\",VLOOKUP(таблПродажи[Код товара],таблПродукты[[Код товара]:[Наименование]],2,FALSE),\"\"),\"Неизвестный код продукта\")","v":"Рубашки"},"2012-01-01",88,{"v":54,"d":"54р."},734,{"v":1427,"d":"1,427"},{"$f":"таблПродажи[[#This Row],[Продано в розницу]]+таблПродажи[[#This Row],[Продано оптом]]","v":{"v":2161,"d":"2,161"}},{"$f":"таблПродажи[[#This Row],[Продано в розницу]]*таблПродажи[[#This Row],[Розн. цена за ед.]]+таблПродажи[[#This Row],[Продано оптом]]*таблПродажи[[#This Row],[Опт. цена за ед.*]]","v":{"v":141650,"d":"141,650р."}}]
[null,2,{"$f":"IFERROR(IF(таблПродажи[[#This Row],[Код товара]]<>\"\",VLOOKUP(таблПродажи[Код товара],таблПродукты[[Код товара]:[Наименование]],2,FALSE),\"\"),\"Неизвестный код продукта\")","v":"Сандалии"},"2012-01-01",70,{"v":44,"d":"44р."},744,{"v":1043,"d":"1,043"},{"$f":"таблПродажи[[#This Row],[Продано в розницу]]+таблПродажи[[#This Row],[Продано оптом]]","v":{"v":1787,"d":"1,787"}},{"$f":"таблПродажи[[#This Row],[Продано в розницу]]*таблПродажи[[#This Row],[Розн. цена за ед.]]+таблПродажи[[#This Row],[Продано оптом]]*таблПродажи[[#This Row],[Опт. цена за ед.*]]","v":{"v":97972,"d":"97,972р."}}]
[null,3,{"$f":"IFERROR(IF(таблПродажи[[#This Row],[Код товара]]<>\"\",VLOOKUP(таблПродажи[Код товара],таблПродукты[[Код товара]:[Наименование]],2,FALSE),\"\"),\"Неизвестный код продукта\")","v":"Зонты"},"2012-01-01",63,{"v":44,"d":"44р."},681,{"v":1523,"d":"1,523"},{"$f":"таблПродажи[[#This Row],[Продано в розницу]]+таблПродажи[[#This Row],[Продано оптом]]","v":{"v":2204,"d":"2,204"}},{"$f":"таблПродажи[[#This Row],[Продано в розницу]]*таблПродажи[[#This Row],[Розн. цена за ед.]]+таблПродажи[[#This Row],[Продано оптом]]*таблПродажи[[#This Row],[Опт. цена за ед.*]]","v":{"v":109915,"d":"109,915р."}}]
[null,4,{"$f":"IFERROR(IF(таблПродажи[[#This Row],[Код товара]]<>\"\",VLOOKUP(таблПродажи[Код товара],таблПродукты[[Код товара]:[Наименование]],2,FALSE),\"\"),\"Неизвестный код продукта\")","v":"Бутылки для воды"},"2012-01-01",35,{"v":27,"d":"27р."},602,{"v":1822,"d":"1,822"},{"$f":"таблПродажи[[#This Row],[Продано в розницу]]+таблПродажи[[#This Row],[Продано оптом]]","v":{"v":2424,"d":"2,424"}},{"$f":"таблПродажи[[#This Row],[Продано в розницу]]*таблПродажи[[#This Row],[Розн. цена за ед.]]+таблПродажи[[#This Row],[Продано оптом]]*таблПродажи[[#This Row],[Опт. цена за ед.*]]","v":{"v":70264,"d":"70,264р."}}]
[null,1,{"$f":"IFERROR(IF(таблПродажи[[#This Row],[Код товара]]<>\"\",VLOOKUP(таблПродажи[Код товара],таблПродукты[[Код товара]:[Наименование]],2,FALSE),\"\"),\"Неизвестный код продукта\")","v":"Рубашки"},"2012-02-01",55,{"v":44,"d":"44р."},678,{"v":1515,"d":"1,515"},{"$f":"таблПродажи[[#This Row],[Продано в розницу]]+таблПродажи[[#This Row],[Продано оптом]]","v":{"v":2193,"d":"2,193"}},{"$f":"таблПродажи[[#This Row],[Продано в розницу]]*таблПродажи[[#This Row],[Розн. цена за ед.]]+таблПродажи[[#This Row],[Продано оптом]]*таблПродажи[[#This Row],[Опт. цена за ед.*]]","v":{"v":103950,"d":"103,950р."}}]
[null,2,{"$f":"IFERROR(IF(таблПродажи[[#This Row],[Код товара]]<>\"\",VLOOKUP(таблПродажи[Код товара],таблПродукты[[Код товара]:[Наименование]],2,FALSE),\"\"),\"Неизвестный код продукта\")","v":"Сандалии"},"2012-02-01",83,{"v":54,"d":"54р."},753,{"v":1005,"d":"1,005"},{"$f":"таблПродажи[[#This Row],[Продано в розницу]]+таблПродажи[[#This Row],[Продано оптом]]","v":{"v":1758,"d":"1,758"}},{"$f":"таблПродажи[[#This Row],[Продано в розницу]]*таблПродажи[[#This Row],[Розн. цена за ед.]]+таблПродажи[[#This Row],[Продано оптом]]*таблПродажи[[#This Row],[Опт. цена за ед.*]]","v":{"v":116769,"d":"116,769р."}}]
[null,3,{"$f":"IFERROR(IF(таблПродажи[[#This Row],[Код товара]]<>\"\",VLOOKUP(таблПродажи[Код товара],таблПродукты[[Код товара]:[Наименование]],2,FALSE),\"\"),\"Неизвестный код продукта\")","v":"Зонты"},"2012-02-01",34,{"v":34,"d":"34р."},986,{"v":1069,"d":"1,069"},{"$f":"таблПродажи[[#This Row],[Продано в розницу]]+таблПродажи[[#This Row],[Продано оптом]]","v":{"v":2055,"d":"2,055"}},{"$f":"таблПродажи[[#This Row],[Продано в розницу]]*таблПродажи[[#This Row],[Розн. цена за ед.]]+таблПродажи[[#This Row],[Продано оптом]]*таблПродажи[[#This Row],[Опт. цена за ед.*]]","v":{"v":69870,"d":"69,870р."}}]
[null,4,{"$f":"IFERROR(IF(таблПродажи[[#This Row],[Код товара]]<>\"\",VLOOKUP(таблПродажи[Код товара],таблПродукты[[Код товара]:[Наименование]],2,FALSE),\"\"),\"Неизвестный код продукта\")","v":"Бутылки для воды"},"2012-02-01",35,{"v":25,"d":"25р."},848,{"v":1211,"d":"1,211"},{"$f":"таблПродажи[[#This Row],[Продано в розницу]]+таблПродажи[[#This Row],[Продано оптом]]","v":{"v":2059,"d":"2,059"}},{"$f":"таблПродажи[[#This Row],[Продано в розницу]]*таблПродажи[[#This Row],[Розн. цена за ед.]]+таблПродажи[[#This Row],[Продано оптом]]*таблПродажи[[#This Row],[Опт. цена за ед.*]]","v":{"v":59955,"d":"59,955р."}}]
[null,5,{"$f":"IFERROR(IF(таблПродажи[[#This Row],[Код товара]]<>\"\",VLOOKUP(таблПродажи[Код товара],таблПродукты[[Код товара]:[Наименование]],2,FALSE),\"\"),\"Неизвестный код продукта\")","v":"Шорты"},"2012-02-01",41,{"v":38,"d":"38р."},980,{"v":1330,"d":"1,330"},{"$f":"таблПродажи[[#This Row],[Продано в розницу]]+таблПродажи[[#This Row],[Продано оптом]]","v":{"v":2310,"d":"2,310"}},{"$f":"таблПродажи[[#This Row],[Продано в розницу]]*таблПродажи[[#This Row],[Розн. цена за ед.]]+таблПродажи[[#This Row],[Продано оптом]]*таблПродажи[[#This Row],[Опт. цена за ед.*]]","v":{"v":90720,"d":"90,720р."}}]
[null,1,{"$f":"IFERROR(IF(таблПродажи[[#This Row],[Код товара]]<>\"\",VLOOKUP(таблПродажи[Код товара],таблПродукты[[Код товара]:[Наименование]],2,FALSE),\"\"),\"Неизвестный код продукта\")","v":"Рубашки"},"2012-02-29",27,{"v":18,"d":"18р."},533,{"v":1936,"d":"1,936"},{"$f":"таблПродажи[[#This Row],[Продано в розницу]]+таблПродажи[[#This Row],[Продано оптом]]","v":{"v":2469,"d":"2,469"}},{"$f":"таблПродажи[[#This Row],[Продано в розницу]]*таблПродажи[[#This Row],[Розн. цена за ед.]]+таблПродажи[[#This Row],[Продано оптом]]*таблПродажи[[#This Row],[Опт. цена за ед.*]]","v":{"v":49239,"d":"49,239р."}}]
[null,2,{"$f":"IFERROR(IF(таблПродажи[[#This Row],[Код товара]]<>\"\",VLOOKUP(таблПродажи[Код товара],таблПродукты[[Код товара]:[Наименование]],2,FALSE),\"\"),\"Неизвестный код продукта\")","v":"Сандалии"},"2012-02-29",38,{"v":28,"d":"28р."},952,{"v":1512,"d":"1,512"},{"$f":"таблПродажи[[#This Row],[Продано в розницу]]+таблПродажи[[#This Row],[Продано оптом]]","v":{"v":2464,"d":"2,464"}},{"$f":"таблПродажи[[#This Row],[Продано в розницу]]*таблПродажи[[#This Row],[Розн. цена за ед.]]+таблПродажи[[#This Row],[Продано оптом]]*таблПродажи[[#This Row],[Опт. цена за ед.*]]","v":{"v":78512,"d":"78,512р."}}]
[null,3,{"$f":"IFERROR(IF(таблПродажи[[#This Row],[Код товара]]<>\"\",VLOOKUP(таблПродажи[Код товара],таблПродукты[[Код товара]:[Наименование]],2,FALSE),\"\"),\"Неизвестный код продукта\")","v":"Зонты"},"2012-02-29",92,{"v":92,"d":"92р."},956,{"v":1266,"d":"1,266"},{"$f":"таблПродажи[[#This Row],[Продано в розницу]]+таблПродажи[[#This Row],[Продано оптом]]","v":{"v":2222,"d":"2,222"}},{"$f":"таблПродажи[[#This Row],[Продано в розницу]]*таблПродажи[[#This Row],[Розн. цена за ед.]]+таблПродажи[[#This Row],[Продано оптом]]*таблПродажи[[#This Row],[Опт. цена за ед.*]]","v":{"v":204424,"d":"204,424р."}}]
[null,4,{"$f":"IFERROR(IF(таблПродажи[[#This Row],[Код товара]]<>\"\",VLOOKUP(таблПродажи[Код товара],таблПродукты[[Код товара]:[Наименование]],2,FALSE),\"\"),\"Неизвестный код продукта\")","v":"Бутылки для воды"},"2012-02-29",43,{"v":36,"d":"36р."},952,{"v":1390,"d":"1,390"},{"$f":"таблПродажи[[#This Row],[Продано в розницу]]+таблПродажи[[#This Row],[Продано оптом]]","v":{"v":2342,"d":"2,342"}},{"$f":"таблПродажи[[#This Row],[Продано в розницу]]*таблПродажи[[#This Row],[Розн. цена за ед.]]+таблПродажи[[#This Row],[Продано оптом]]*таблПродажи[[#This Row],[Опт. цена за ед.*]]","v":{"v":90976,"d":"90,976р."}}]
[null,5,{"$f":"IFERROR(IF(таблПродажи[[#This Row],[Код товара]]<>\"\",VLOOKUP(таблПродажи[Код товара],таблПродукты[[Код товара]:[Наименование]],2,FALSE),\"\"),\"Неизвестный код продукта\")","v":"Шорты"},"2012-02-29",98,{"v":73,"d":"73р."},530,{"v":1452,"d":"1,452"},{"$f":"таблПродажи[[#This Row],[Продано в розницу]]+таблПродажи[[#This Row],[Продано оптом]]","v":{"v":1982,"d":"1,982"}},{"$f":"таблПродажи[[#This Row],[Продано в розницу]]*таблПродажи[[#This Row],[Розн. цена за ед.]]+таблПродажи[[#This Row],[Продано оптом]]*таблПродажи[[#This Row],[Опт. цена за ед.*]]","v":{"v":157936,"d":"157,936р."}}]
[null,1,{"$f":"IFERROR(IF(таблПродажи[[#This Row],[Код товара]]<>\"\",VLOOKUP(таблПродажи[Код товара],таблПродукты[[Код товара]:[Наименование]],2,FALSE),\"\"),\"Неизвестный код продукта\")","v":"Рубашки"},"2012-03-31",38,{"v":28,"d":"28р."},973,{"v":1415,"d":"1,415"},{"$f":"таблПродажи[[#This Row],[Продано в розницу]]+таблПродажи[[#This Row],[Продано оптом]]","v":{"v":2388,"d":"2,388"}},{"$f":"таблПродажи[[#This Row],[Продано в розницу]]*таблПродажи[[#This Row],[Розн. цена за ед.]]+таблПродажи[[#This Row],[Продано оптом]]*таблПродажи[[#This Row],[Опт. цена за ед.*]]","v":{"v":76594,"d":"76,594р."}}]
[null,2,{"$f":"IFERROR(IF(таблПродажи[[#This Row],[Код товара]]<>\"\",VLOOKUP(таблПродажи[Код товара],таблПродукты[[Код товара]:[Наименование]],2,FALSE),\"\"),\"Неизвестный код продукта\")","v":"Сандалии"},"2012-03-31",50,{"v":36,"d":"36р."},672,{"v":1105,"d":"1,105"},{"$f":"таблПродажи[[#This Row],[Продано в розницу]]+таблПродажи[[#This Row],[Продано оптом]]","v":{"v":1777,"d":"1,777"}},{"$f":"таблПродажи[[#This Row],[Продано в розницу]]*таблПродажи[[#This Row],[Розн. цена за ед.]]+таблПродажи[[#This Row],[Продано оптом]]*таблПродажи[[#This Row],[Опт. цена за ед.*]]","v":{"v":73380,"d":"73,380р."}}]
[null,3,{"$f":"IFERROR(IF(таблПродажи[[#This Row],[Код товара]]<>\"\",VLOOKUP(таблПродажи[Код товара],таблПродукты[[Код товара]:[Наименование]],2,FALSE),\"\"),\"Неизвестный код продукта\")","v":"Зонты"},"2012-03-31",24,{"v":23,"d":"23р."},769,{"v":1629,"d":"1,629"},{"$f":"таблПродажи[[#This Row],[Продано в розницу]]+таблПродажи[[#This Row],[Продано оптом]]","v":{"v":2398,"d":"2,398"}},{"$f":"таблПродажи[[#This Row],[Продано в розницу]]*таблПродажи[[#This Row],[Розн. цена за ед.]]+таблПродажи[[#This Row],[Продано оптом]]*таблПродажи[[#This Row],[Опт. цена за ед.*]]","v":{"v":55923,"d":"55,923р."}}]
[null,4,{"$f":"IFERROR(IF(таблПродажи[[#This Row],[Код товара]]<>\"\",VLOOKUP(таблПродажи[Код товара],таблПродукты[[Код товара]:[Наименование]],2,FALSE),\"\"),\"Неизвестный код продукта\")","v":"Бутылки для воды"},"2012-03-31",72,{"v":57,"d":"57р."},985,{"v":1848,"d":"1,848"},{"$f":"таблПродажи[[#This Row],[Продано в розницу]]+таблПродажи[[#This Row],[Продано оптом]]","v":{"v":2833,"d":"2,833"}},{"$f":"таблПродажи[[#This Row],[Продано в розницу]]*таблПродажи[[#This Row],[Розн. цена за ед.]]+таблПродажи[[#This Row],[Продано оптом]]*таблПродажи[[#This Row],[Опт. цена за ед.*]]","v":{"v":176256,"d":"176,256р."}}]
[null,5,{"$f":"IFERROR(IF(таблПродажи[[#This Row],[Код товара]]<>\"\",VLOOKUP(таблПродажи[Код товара],таблПродукты[[Код товара]:[Наименование]],2,FALSE),\"\"),\"Неизвестный код продукта\")","v":"Шорты"},"2012-03-31",85,{"v":43,"d":"43р."},721,{"v":1426,"d":"1,426"},{"$f":"таблПродажи[[#This Row],[Продано в розницу]]+таблПродажи[[#This Row],[Продано оптом]]","v":{"v":2147,"d":"2,147"}},{"$f":"таблПродажи[[#This Row],[Продано в розницу]]*таблПродажи[[#This Row],[Розн. цена за ед.]]+таблПродажи[[#This Row],[Продано оптом]]*таблПродажи[[#This Row],[Опт. цена за ед.*]]","v":{"v":122603,"d":"122,603р."}}]
[null,1,{"$f":"IFERROR(IF(таблПродажи[[#This Row],[Код товара]]<>\"\",VLOOKUP(таблПродажи[Код товара],таблПродукты[[Код товара]:[Наименование]],2,FALSE),\"\"),\"Неизвестный код продукта\")","v":"Рубашки"},"2012-04-30",91,{"v":65,"d":"65р."},603,{"v":1226,"d":"1,226"},{"$f":"таблПродажи[[#This Row],[Продано в розницу]]+таблПродажи[[#This Row],[Продано оптом]]","v":{"v":1829,"d":"1,829"}},{"$f":"таблПродажи[[#This Row],[Продано в розницу]]*таблПродажи[[#This Row],[Розн. цена за ед.]]+таблПродажи[[#This Row],[Продано оптом]]*таблПродажи[[#This Row],[Опт. цена за ед.*]]","v":{"v":134563,"d":"134,563р."}}]
[null,2,{"$f":"IFERROR(IF(таблПродажи[[#This Row],[Код товара]]<>\"\",VLOOKUP(таблПродажи[Код товара],таблПродукты[[Код товара]:[Наименование]],2,FALSE),\"\"),\"Неизвестный код продукта\")","v":"Сандалии"},"2012-04-30",91,{"v":55,"d":"55р."},892,{"v":1823,"d":"1,823"},{"$f":"таблПродажи[[#This Row],[Продано в розницу]]+таблПродажи[[#This Row],[Продано оптом]]","v":{"v":2715,"d":"2,715"}},{"$f":"таблПродажи[[#This Row],[Продано в розницу]]*таблПродажи[[#This Row],[Розн. цена за ед.]]+таблПродажи[[#This Row],[Продано оптом]]*таблПродажи[[#This Row],[Опт. цена за ед.*]]","v":{"v":181437,"d":"181,437р."}}]
[null,3,{"$f":"IFERROR(IF(таблПродажи[[#This Row],[Код товара]]<>\"\",VLOOKUP(таблПродажи[Код товара],таблПродукты[[Код товара]:[Наименование]],2,FALSE),\"\"),\"Неизвестный код продукта\")","v":"Зонты"},"2012-04-30",42,{"v":42,"d":"42р."},611,{"v":1181,"d":"1,181"},{"$f":"таблПродажи[[#This Row],[Продано в розницу]]+таблПродажи[[#This Row],[Продано оптом]]","v":{"v":1792,"d":"1,792"}},{"$f":"таблПродажи[[#This Row],[Продано в розницу]]*таблПродажи[[#This Row],[Розн. цена за ед.]]+таблПродажи[[#This Row],[Продано оптом]]*таблПродажи[[#This Row],[Опт. цена за ед.*]]","v":{"v":75264,"d":"75,264р."}}]
[null,4,{"$f":"IFERROR(IF(таблПродажи[[#This Row],[Код товара]]<>\"\",VLOOKUP(таблПродажи[Код товара],таблПродукты[[Код товара]:[Наименование]],2,FALSE),\"\"),\"Неизвестный код продукта\")","v":"Бутылки для воды"},"2012-04-30",85,{"v":43,"d":"43р."},530,{"v":1039,"d":"1,039"},{"$f":"таблПродажи[[#This Row],[Продано в розницу]]+таблПродажи[[#This Row],[Продано оптом]]","v":{"v":1569,"d":"1,569"}},{"$f":"таблПродажи[[#This Row],[Продано в розницу]]*таблПродажи[[#This Row],[Розн. цена за ед.]]+таблПродажи[[#This Row],[Продано оптом]]*таблПродажи[[#This Row],[Опт. цена за ед.*]]","v":{"v":89727,"d":"89,727р."}}]
[null,5,{"$f":"IFERROR(IF(таблПродажи[[#This Row],[Код товара]]<>\"\",VLOOKUP(таблПродажи[Код товара],таблПродукты[[Код товара]:[Наименование]],2,FALSE),\"\"),\"Неизвестный код продукта\")","v":"Шорты"},"2012-04-30",82,{"v":71,"d":"71р."},716,{"v":1249,"d":"1,249"},{"$f":"таблПродажи[[#This Row],[Продано в розницу]]+таблПродажи[[#This Row],[Продано оптом]]","v":{"v":1965,"d":"1,965"}},{"$f":"таблПродажи[[#This Row],[Продано в розницу]]*таблПродажи[[#This Row],[Розн. цена за ед.]]+таблПродажи[[#This Row],[Продано оптом]]*таблПродажи[[#This Row],[Опт. цена за ед.*]]","v":{"v":147391,"d":"147,391р."}}]
[null,1,{"$f":"IFERROR(IF(таблПродажи[[#This Row],[Код товара]]<>\"\",VLOOKUP(таблПродажи[Код товара],таблПродукты[[Код товара]:[Наименование]],2,FALSE),\"\"),\"Неизвестный код продукта\")","v":"Рубашки"},"2012-05-14",34,{"v":31,"d":"31р."},850,{"v":1548,"d":"1,548"},{"$f":"таблПродажи[[#This Row],[Продано в розницу]]+таблПродажи[[#This Row],[Продано оптом]]","v":{"v":2398,"d":"2,398"}},{"$f":"таблПродажи[[#This Row],[Продано в розницу]]*таблПродажи[[#This Row],[Розн. цена за ед.]]+таблПродажи[[#This Row],[Продано оптом]]*таблПродажи[[#This Row],[Опт. цена за ед.*]]","v":{"v":76888,"d":"76,888р."}}]
[null,2,{"$f":"IFERROR(IF(таблПродажи[[#This Row],[Код товара]]<>\"\",VLOOKUP(таблПродажи[Код товара],таблПродукты[[Код товара]:[Наименование]],2,FALSE),\"\"),\"Неизвестный код продукта\")","v":"Сандалии"},"2012-05-14",64,{"v":40,"d":"40р."},876,{"v":1663,"d":"1,663"},{"$f":"таблПродажи[[#This Row],[Продано в розницу]]+таблПродажи[[#This Row],[Продано оптом]]","v":{"v":2539,"d":"2,539"}},{"$f":"таблПродажи[[#This Row],[Продано в розницу]]*таблПродажи[[#This Row],[Розн. цена за ед.]]+таблПродажи[[#This Row],[Продано оптом]]*таблПродажи[[#This Row],[Опт. цена за ед.*]]","v":{"v":122584,"d":"122,584р."}}]
[null,3,{"$f":"IFERROR(IF(таблПродажи[[#This Row],[Код товара]]<>\"\",VLOOKUP(таблПродажи[Код товара],таблПродукты[[Код товара]:[Наименование]],2,FALSE),\"\"),\"Неизвестный код продукта\")","v":"Зонты"},"2012-05-14",33,{"v":30,"d":"30р."},881,{"v":1149,"d":"1,149"},{"$f":"таблПродажи[[#This Row],[Продано в розницу]]+таблПродажи[[#This Row],[Продано оптом]]","v":{"v":2030,"d":"2,030"}},{"$f":"таблПродажи[[#This Row],[Продано в розницу]]*таблПродажи[[#This Row],[Розн. цена за ед.]]+таблПродажи[[#This Row],[Продано оптом]]*таблПродажи[[#This Row],[Опт. цена за ед.*]]","v":{"v":63543,"d":"63,543р."}}]
[null,4,{"$f":"IFERROR(IF(таблПродажи[[#This Row],[Код товара]]<>\"\",VLOOKUP(таблПродажи[Код товара],таблПродукты[[Код товара]:[Наименование]],2,FALSE),\"\"),\"Неизвестный код продукта\")","v":"Бутылки для воды"},"2012-05-14",29,{"v":27,"d":"27р."},802,{"v":1548,"d":"1,548"},{"$f":"таблПродажи[[#This Row],[Продано в розницу]]+таблПродажи[[#This Row],[Продано оптом]]","v":{"v":2350,"d":"2,350"}},{"$f":"таблПродажи[[#This Row],[Продано в розницу]]*таблПродажи[[#This Row],[Розн. цена за ед.]]+таблПродажи[[#This Row],[Продано оптом]]*таблПродажи[[#This Row],[Опт. цена за ед.*]]","v":{"v":65054,"d":"65,054р."}}]
[null,5,{"$f":"IFERROR(IF(таблПродажи[[#This Row],[Код товара]]<>\"\",VLOOKUP(таблПродажи[Код товара],таблПродукты[[Код товара]:[Наименование]],2,FALSE),\"\"),\"Неизвестный код продукта\")","v":"Шорты"},"2013-12-11",24,{"v":15,"d":"15р."},824,{"v":1994,"d":"1,994"},{"$f":"таблПродажи[[#This Row],[Продано в розницу]]+таблПродажи[[#This Row],[Продано оптом]]","v":{"v":2818,"d":"2,818"}},{"$f":"таблПродажи[[#This Row],[Продано в розницу]]*таблПродажи[[#This Row],[Розн. цена за ед.]]+таблПродажи[[#This Row],[Продано оптом]]*таблПродажи[[#This Row],[Опт. цена за ед.*]]","v":{"v":49686,"d":"49,686р."}}]

{"sheet":"Прайс-лист","index":2,"n_rows":18,"n_cols":6,"rows_kept":18,"merged":[[15,1,15,5]]}
[null,"Прайс-лист товаров"]
[]
[null,"Мир приключений"]
[null,"23456, ул. Бородинская, д. 23"]
[null,"г. Москва"]
[null,"Телефон: (495) 555-0150"]
[null,"Факс: (495) 555-0152"]
[null,"www.adventure-works.com",{"$nulls":3},"Последнее обновление: 15.08.2013 г."]
[]
[null,"Код товара","Наименование","Описание","Розн. цена за ед.","Опт. цена за ед.*"]
[null,1,"Рубашки","Выглядите классно все лето в наших рубашках из чистого хлопка с предварительной усадкой.",{"v":22,"d":"22р."},{"v":15,"d":"15.00р."}]
[null,2,"Сандалии","В наших прочных сандалиях с резиновой подошвой вы сможете с комфортом ходить по самому горячему песку.",{"v":10,"d":"10р."},{"v":6,"d":"6.00р."}]
[null,3,"Зонты","Спрячьтесь от солнца под нашим увеличенным пляжным зонтом, который на 96 % защищает от вредного ультрафиолетового излучения.",{"v":30,"d":"30р."},{"v":20,"d":"20.00р."}]
[null,4,"Бутылки для воды","Утолите жажду водой идеальной температуры из нашей защищенной от нагревания бутылки для воды.",{"v":7,"d":"7р."},{"v":5,"d":"5.00р."}]
[null,5,"Шорты","В наших быстросохнущих шортах вы сможете сразу сесть в машину, выйдя из моря.",{"v":15,"d":"15р."},{"v":8,"d":"8.00р."}]
[]
[{"$nulls":5},"Чтобы узнать о товарах, которых нет в списке, позвоните нам."]
[{"$nulls":5},"*Оптовые цены применяются при покупке 12 и более единиц."]

{"sheet":"Свод. таблица стандартных цен","index":3,"n_rows":10,"n_cols":4,"rows_kept":10,"hidden":true,"merged":[[1,1,1,3]]}
[null,"Сводная таблица стандартных цен"]
[null,"Этот лист должен оставаться скрытым. Любые изменения в указанной ниже сводной таблице приведут к неправильным данным в отчете о продажах товара. "]
[null,"Выбранный товар:",{"$f":"IF(LEN(B5),B5,\"None\")","v":"Сандалии"}]
[null,"Наименование товара","Розн. цена за ед.","Сумма по полю Всего продаж (шт.)"]
[null,"Сандалии",{"v":38,"d":"38р."},2464]
[null,null,{"v":50,"d":"50р."},1777]
[null,null,{"v":64,"d":"64р."},2539]
[null,null,{"v":70,"d":"70р."},1787]
[null,null,{"v":83,"d":"83р."},1758]
[null,null,{"v":91,"d":"91р."},2715]

{"sheet":"Свод. таблица тенденций продаж","index":4,"n_rows":9,"n_cols":3,"rows_kept":9,"hidden":true,"merged":[[1,1,1,3]]}
[null,"Сводная таблица тенденций продаж"]
[null,"Этот лист должен оставаться скрытым. Любые изменения в указанной ниже сводной таблице приведут к неправильным данным в отчете о продажах товара. "]
[null,"Сумма по полю Всего продаж (шт.)","Наименование товара"]
[null,"Цена на дату","Сандалии"]
[null,"янв",1787]
[null,"фев",4222]
[null,"мар",1777]
[null,"апр",2715]
[null,"май",2539]